[Event "Manhemjunioren 2024"]
[Site "Goteborgs Schackcentrum, Vegatan 20, Gothenburg, Sweden"]
[Date "2024.04.06"]
[Round "2.2"]
[White "Bahl, Advaiya"]
[Black "Kaplan, Viktor"]
[Result "1/2-1/2"]
[TimeControl "18 minutes + 10 seconds per move from move one."]
[WhiteFideId "1782002"]
[BlackFideId "1780956"]
[WhiteElo "1609"]
[BlackElo "1596"]

1. e4 {[%clk 00:18:18]} {[%emt 00:00:02]} e6 {[%clk 00:18:19]} {[%emt
00:00:02]} 2. d4 {[%clk 00:18:24]} {[%emt 00:00:04]} d5 {[%clk 00:18:29]} 3.
exd5 {[%clk 00:18:31]} {[%emt 00:00:04]} exd5 {[%clk 00:18:38]} 4. Bd3 {[%clk
00:18:37]} {[%emt 00:00:04]} Nf6 {[%clk 00:18:46]} {[%emt 00:00:02]} 5. Nf3
{[%clk 00:18:45]} {[%emt 00:00:02]} Bd6 {[%clk 00:18:55]} 6. Bg5 {[%clk
00:18:10]} {[%emt 00:00:45]} O-O {[%clk 00:18:58]} {[%emt 00:00:08]} 7. O-O
{[%clk 00:18:02]} {[%emt 00:00:19]} Bg4 {[%clk 00:18:47]} {[%emt 00:00:20]} 8.
h3 {[%clk 00:18:08]} {[%emt 00:00:04]} Bh5 {[%clk 00:18:56]} 9. Nbd2 {[%clk
00:17:39]} {[%emt 00:00:39]} c6 {[%clk 00:18:57]} {[%emt 00:00:09]} 10. c3
{[%clk 00:17:46]} {[%emt 00:00:03]} Nbd7 {[%clk 00:19:06]} {[%emt 00:00:01]} 11.
Qc2 {[%clk 00:17:30]} {[%emt 00:00:26]} Qc7 {[%clk 00:19:00]} {[%emt 00:00:16]}
12. Rfe1 {[%clk 00:16:42]} {[%emt 00:00:57]} Rfe8 {[%clk 00:18:45]} {[%emt
00:00:26]} 13. Rad1 {[%clk 00:15:48]} {[%emt 00:01:04]} Bg6 {[%clk 00:15:54]}
{[%emt 00:03:01]} 14. b4 {[%clk 00:14:47]} {[%emt 00:01:11]} Bxd3 {[%clk
00:12:28]} {[%emt 00:03:36]} 15. Qxd3 {[%clk 00:14:45]} {[%emt 00:00:11]} h6
{[%clk 00:12:14]} {[%emt 00:00:24]} 16. Be3 {[%clk 00:13:16]} {[%emt 00:01:40]}
Nh5 {[%clk 00:08:15]} {[%emt 00:04:09]} 17. a4 {[%clk 00:11:44]} {[%emt
00:01:42]} Ndf6 {[%clk 00:07:07]} {[%emt 00:01:18]} 18. Nb3 {[%clk 00:09:39]}
{[%emt 00:02:16]} Bf4 {[%clk 00:05:02]} {[%emt 00:02:15]} 19. Qd2 {[%clk
00:07:40]} {[%emt 00:02:09]} Bxe3 {[%clk 00:03:41]} {[%emt 00:01:30]} 20. Rxe3
{[%clk 00:07:31]} {[%emt 00:00:18]} Rxe3 {[%clk 00:03:47]} {[%emt 00:00:05]} 21.
Qxe3 {[%clk 00:07:38]} {[%emt 00:00:02]} Re8 {[%clk 00:03:27]} {[%emt
00:00:31]} 22. Qc1 {[%clk 00:07:10]} {[%emt 00:00:38]} Nf4 {[%clk 00:03:04]}
{[%emt 00:00:34]} 23. Qc2 {[%clk 00:05:48]} {[%emt 00:01:31]} Ne4 {[%clk
00:02:37]} {[%emt 00:00:37]} 24. Re1 {[%clk 00:05:24]} {[%emt 00:00:34]} f5
{[%clk 00:02:05]} {[%emt 00:00:43]} 25. Nc5 {[%clk 00:05:00]} {[%emt 00:00:33]}
b6 {[%clk 00:01:51]} {[%emt 00:00:24]} 26. Nxe4 {[%clk 00:05:03]} {[%emt
00:00:07]} dxe4 {[%clk 00:01:33]} {[%emt 00:00:28]} 27. Ne5 {[%clk 00:05:11]}
{[%emt 00:00:02]} c5 {[%clk 00:01:07]} {[%emt 00:00:37]} 28. Qd2 {[%clk
00:04:01]} {[%emt 00:01:19]} Ne6 {[%clk 00:00:50]} {[%emt 00:00:27]} 29. bxc5
{[%clk 00:03:19]} {[%emt 00:00:52]} bxc5 {[%clk 00:00:55]} {[%emt 00:00:05]} 30.
Qa2 {[%clk 00:02:47]} {[%emt 00:00:42]} Kh7 {[%clk 00:00:33]} {[%emt 00:00:32]}
31. Qc4 {[%clk 00:01:59]} {[%emt 00:00:58]} cxd4 {[%clk 00:00:22]} {[%emt
00:00:21]} 32. Qxc7 {[%clk 00:02:03]} {[%emt 00:00:07]} Nxc7 {[%clk 00:00:31]}
33. cxd4 {[%clk 00:02:06]} {[%emt 00:00:07]} Rd8 {[%clk 00:00:19]} {[%emt
00:00:23]} 34. Rd1 {[%clk 00:01:57]} {[%emt 00:00:18]} Ne6 {[%clk 00:00:23]}
{[%emt 00:00:06]} 35. Nc6 {[%clk 00:01:55]} {[%emt 00:00:12]} Rd7 {[%clk
00:00:25]} {[%emt 00:00:08]} 36. d5 {[%clk 00:01:54]} {[%emt 00:00:10]} Nc5
{[%clk 00:00:31]} {[%emt 00:00:05]} 37. a5 {[%clk 00:01:56]} {[%emt 00:00:09]}
Nd3 {[%clk 00:00:37]} {[%emt 00:00:03]} 38. a6 {[%clk 00:01:07]} {[%emt
00:00:59]} Rxd5 {[%clk 00:00:42]} {[%emt 00:00:05]} 39. Nxa7 {[%clk 00:01:14]}
{[%emt 00:00:04]} Ra5 {[%clk 00:00:49]} {[%emt 00:00:02]} 40. Nc6 {[%clk
00:01:08]} {[%emt 00:00:16]} Rxa6 {[%clk 00:00:56]} {[%emt 00:00:03]} 41. Nd4
{[%clk 00:01:12]} {[%emt 00:00:06]} g6 {[%clk 00:00:52]} {[%emt 00:00:15]} 42.
f3 {[%clk 00:01:15]} {[%emt 00:00:06]} Ra4 {[%clk 00:00:49]} {[%emt 00:00:13]}
43. Ne6 {[%clk 00:00:48]} {[%emt 00:00:36]} e3 {[%clk 00:00:20]} {[%emt
00:00:40]} 44. Rxd3 {[%clk 00:00:49]} {[%emt 00:00:09]} Ra1+ {[%clk 00:00:28]}
{[%emt 00:00:02]} 45. Kh2 {[%clk 00:00:52]} {[%emt 00:00:07]} e2 {[%clk
00:00:37]} {[%emt 00:00:01]} 46. Re3 {[%clk 00:00:36]} {[%emt 00:00:26]} e1=Q
{[%clk 00:00:43]} {[%emt 00:00:04]} 47. Rxe1 {[%clk 00:00:41]} {[%emt
00:00:05]} Rxe1 {[%clk 00:00:52]} {[%emt 00:00:01]} 48. Nc5 {[%clk 00:00:46]}
{[%emt 00:00:05]} Rd1 {[%clk 00:00:57]} {[%emt 00:00:04]} 49. Ne6 {[%clk
00:00:45]} {[%emt 00:00:11]} g5 {[%clk 00:00:59]} {[%emt 00:00:08]} 50. Nc5
{[%clk 00:00:38]} {[%emt 00:00:17]} Kg6 {[%clk 00:01:03]} {[%emt 00:00:07]} 51.
Na4 {[%clk 00:00:41]} {[%emt 00:00:07]} h5 {[%clk 00:00:39]} {[%emt 00:00:34]}
52. Nc3 {[%clk 00:00:49]} {[%emt 00:00:02]} Rc1 {[%clk 00:00:46]} {[%emt
00:00:03]} 53. Ne2 {[%clk 00:00:55]} {[%emt 00:00:05]} Re1 {[%clk 00:00:51]}
{[%emt 00:00:05]} 54. Nd4 {[%clk 00:00:55]} {[%emt 00:00:10]} h4 {[%clk
00:00:46]} {[%emt 00:00:15]} 55. Nc2 {[%clk 00:01:01]} {[%emt 00:00:04]} Re2
{[%clk 00:00:53]} {[%emt 00:00:03]} 56. Nd4 {[%clk 00:01:09]} {[%emt 00:00:03]}
Rd2 {[%clk 00:00:58]} {[%emt 00:00:04]} 57. Nb3 {[%clk 00:01:16]} {[%emt
00:00:03]} Rd1 {[%clk 00:01:00]} {[%emt 00:00:08]} 58. Na5 {[%clk 00:01:10]}
{[%emt 00:00:16]} Kf6 {[%clk 00:00:59]} {[%emt 00:00:11]} 59. Nc4 {[%clk
00:01:18]} {[%emt 00:00:02]} Rd3 {[%clk 00:00:52]} {[%emt 00:00:17]} 60. Nb2
{[%clk 00:01:25]} {[%emt 00:00:04]} Rd4 {[%clk 00:00:57]} {[%emt 00:00:03]} 61.
Kg1 {[%clk 00:01:22]} {[%emt 00:00:14]} f4 {[%clk 00:01:00]} {[%emt 00:00:08]}
62. Kh2 {[%clk 00:01:25]} {[%emt 00:00:06]} Ke5 {[%clk 00:01:07]} {[%emt
00:00:03]} 63. Kg1 {[%clk 00:01:29]} {[%emt 00:00:06]} Kd5 {[%clk 00:01:15]}
{[%emt 00:00:02]} 64. Kf1 {[%clk 00:01:36]} {[%emt 00:00:03]} Kc5 {[%clk
00:01:10]} {[%emt 00:00:16]} 65. Ke2 {[%clk 00:01:44]} {[%emt 00:00:01]} Kb4
{[%clk 00:01:11]} {[%emt 00:00:09]} 66. Nd3+ {[%clk 00:01:50]} {[%emt
00:00:04]} Kc3 {[%clk 00:01:20]} 67. Ne5 {[%clk 00:01:46]} {[%emt 00:00:14]}
Rd2+ {[%clk 00:01:23]} {[%emt 00:00:07]} 68. Kf1 {[%clk 00:01:49]} {[%emt
00:00:07]} Rd1+ {[%clk 00:01:22]} {[%emt 00:00:11]} 69. Ke2 {[%clk 00:01:52]}
{[%emt 00:00:06]} Rd2+ {[%clk 00:01:11]} {[%emt 00:00:22]} 70. Kf1 {[%clk
00:01:59]} {[%emt 00:00:03]} Rd1+ {[%clk 00:01:12]} {[%emt 00:00:09]} 71. Ke2
{[%clk 00:02:07]} {[%emt 00:00:01]} Rd2+ {[%clk 00:01:22]} {[%emt 00:00:01]}
1/2-1/2

[Event "Manhemjunioren 2024"]
[Site "Goteborgs Schackcentrum, Vegatan 20, Gothenburg, Sweden"]
[Date "2024.04.06"]
[Round "2.3"]
[White "Yang, Mandi"]
[Black "Bergdahl, Martin"]
[Result "1-0"]
[TimeControl "18 minutes + 10 seconds per move from move one."]
[WhiteFideId "1774778"]
[BlackFideId "1782231"]
[WhiteElo "1738"]
[BlackElo "1533"]

1. e4 {[%clk 00:18:19]} {[%emt 00:00:01]} c6 {[%clk 00:18:14]} {[%emt
00:00:06]} 2. d4 {[%clk 00:18:27]} {[%emt 00:00:02]} d5 {[%clk 00:18:23]}
{[%emt 00:00:01]} 3. e5 {[%clk 00:18:35]} {[%emt 00:00:02]} c5 {[%clk
00:18:33]} 4. dxc5 {[%clk 00:18:43]} {[%emt 00:00:02]} Nc6 {[%clk 00:18:42]} 5.
Nf3 {[%clk 00:18:51]} {[%emt 00:00:02]} Bf5 {[%clk 00:18:51]} 6. c3 {[%clk
00:18:52]} {[%emt 00:00:09]} Qc7 {[%clk 00:17:05]} {[%emt 00:01:56]} 7. Bb5
{[%clk 00:17:22]} {[%emt 00:01:41]} Bg4 {[%clk 00:16:44]} {[%emt 00:00:30]} 8.
O-O {[%clk 00:16:56]} {[%emt 00:00:36]} e6 {[%clk 00:16:42]} {[%emt 00:00:13]}
9. Be3 {[%clk 00:16:44]} {[%emt 00:00:21]} Nge7 {[%clk 00:16:27]} {[%emt
00:00:23]} 10. Nbd2 {[%clk 00:16:41]} {[%emt 00:00:14]} a6 {[%clk 00:16:26]}
{[%emt 00:00:12]} 11. Ba4 {[%clk 00:15:18]} {[%emt 00:01:33]} Ng6 {[%clk
00:16:09]} {[%emt 00:00:27]} 12. h3 {[%clk 00:15:11]} {[%emt 00:00:16]} Bxf3
{[%clk 00:16:12]} {[%emt 00:00:07]} 13. Nxf3 {[%clk 00:15:19]} {[%emt
00:00:03]} Ngxe5 {[%clk 00:16:19]} {[%emt 00:00:03]} 14. Nxe5 {[%clk 00:14:12]}
{[%emt 00:01:17]} Qxe5 {[%clk 00:16:28]} {[%emt 00:00:01]} 15. Qb3 {[%clk
00:13:59]} {[%emt 00:00:23]} Rb8 {[%clk 00:16:16]} {[%emt 00:00:22]} 16. g3
{[%clk 00:12:45]} {[%emt 00:01:23]} g5 {[%clk 00:16:14]} {[%emt 00:00:12]} 17.
Bd4 {[%clk 00:12:53]} {[%emt 00:00:03]} Qf5 {[%clk 00:15:45]} {[%emt 00:00:39]}
18. Bxc6+ {[%clk 00:13:00]} {[%emt 00:00:03]} 1-0

[Event "Manhemjunioren 2024"]
[Site "Goteborgs Schackcentrum, Vegatan 20, Gothenburg, Sweden"]
[Date "2024.04.06"]
[Round "2.4"]
[White "Murugaraja, Yogeshwer"]
[Black "Bergdahl, Daniel"]
[Result "0-1"]
[TimeControl "18 minutes + 10 seconds per move from move one."]
[WhiteFideId "1779389"]
[BlackFideId "1780921"]
[WhiteElo "1587"]
[BlackElo "1627"]

1. c4 {[%clk 00:18:19]} e5 {[%clk 00:18:17]} {[%emt 00:00:04]} 2. g3 {[%clk
00:18:26]} {[%emt 00:00:02]} Nf6 {[%clk 00:18:24]} {[%emt 00:00:03]} 3. Bg2
{[%clk 00:18:35]} {[%emt 00:00:02]} Nc6 {[%clk 00:18:32]} {[%emt 00:00:02]} 4.
e3 {[%clk 00:18:27]} {[%emt 00:00:18]} Bc5 {[%clk 00:18:19]} {[%emt 00:00:23]}
5. Ne2 {[%clk 00:18:23]} {[%emt 00:00:14]} d6 {[%clk 00:18:18]} {[%emt
00:00:12]} 6. d4 {[%clk 00:17:04]} {[%emt 00:01:28]} Bb4+ {[%clk 00:18:27]}
{[%emt 00:00:02]} 7. Bd2 {[%clk 00:17:06]} {[%emt 00:00:08]} Bxd2+ {[%clk
00:18:30]} {[%emt 00:00:07]} 8. Qxd2 {[%clk 00:17:12]} {[%emt 00:00:04]} O-O
{[%clk 00:18:36]} {[%emt 00:00:05]} 9. d5 {[%clk 00:16:37]} {[%emt 00:00:44]}
Ne7 {[%clk 00:18:39]} {[%emt 00:00:07]} 10. e4 {[%clk 00:16:36]} {[%emt
00:00:11]} c6 {[%clk 00:18:42]} {[%emt 00:00:08]} 11. O-O {[%clk 00:15:59]}
{[%emt 00:00:46]} Ng6 {[%clk 00:18:46]} {[%emt 00:00:06]} 12. Nbc3 {[%clk
00:12:02]} {[%emt 00:04:07]} Re8 {[%clk 00:17:57]} {[%emt 00:00:59]} 13. f4
{[%clk 00:09:03]} {[%emt 00:03:09]} exf4 {[%clk 00:17:50]} {[%emt 00:00:18]} 14.
Nxf4 {[%clk 00:09:06]} {[%emt 00:00:06]} Nxf4 {[%clk 00:17:53]} {[%emt
00:00:07]} 15. Qxf4 {[%clk 00:09:09]} {[%emt 00:00:07]} Qb6+ {[%clk 00:17:53]}
{[%emt 00:00:10]} 16. Qf2 {[%clk 00:08:35]} {[%emt 00:00:43]} c5 {[%clk
00:17:52]} {[%emt 00:00:12]} 17. b3 {[%clk 00:05:52]} {[%emt 00:02:53]} Qb4
{[%clk 00:17:08]} {[%emt 00:00:53]} 18. Rac1 {[%clk 00:05:35]} {[%emt
00:00:28]} Bd7 {[%clk 00:16:28]} {[%emt 00:00:51]} 19. Qf4 {[%clk 00:04:27]}
{[%emt 00:01:17]} Re5 {[%clk 00:15:57]} {[%emt 00:00:42]} 20. h3 {[%clk
00:02:36]} {[%emt 00:01:59]} h6 {[%clk 00:15:01]} {[%emt 00:01:07]} 21. g4
{[%clk 00:02:14]} {[%emt 00:00:32]} b5 {[%clk 00:14:51]} {[%emt 00:00:21]} 22.
Ne2 {[%clk 00:01:11]} {[%emt 00:01:12]} Qa5 {[%clk 00:14:58]} {[%emt 00:00:04]}
23. Ra1 {[%clk 00:00:57]} {[%emt 00:00:25]} bxc4 {[%clk 00:14:47]} {[%emt
00:00:20]} 24. bxc4 {[%clk 00:01:05]} {[%emt 00:00:02]} Rb8 {[%clk 00:14:57]}
25. Ng3 {[%clk 00:00:57]} {[%emt 00:00:17]} Rb2 {[%clk 00:14:32]} {[%emt
00:00:34]} 26. Nh5 {[%clk 00:01:04]} {[%emt 00:00:04]} Rxh5 {[%clk 00:13:21]}
{[%emt 00:01:21]} 27. gxh5 {[%clk 00:00:59]} {[%emt 00:00:15]} Qc3 {[%clk
00:13:29]} {[%emt 00:00:02]} 28. Rad1 {[%clk 00:00:13]} {[%emt 00:00:56]} Rxg2+
{[%clk 00:13:00]} {[%emt 00:00:40]} 29. Kxg2 {[%clk 00:00:18]} {[%emt
00:00:05]} Bxh3+ {[%clk 00:13:00]} {[%emt 00:00:10]} 30. Kg1 {[%clk 00:00:20]}
{[%emt 00:00:07]} Bxf1 {[%clk 00:13:01]} {[%emt 00:00:08]} 31. Qxf1 {[%clk
00:00:25]} {[%emt 00:00:05]} Nxe4 {[%clk 00:12:50]} {[%emt 00:00:21]} 32. Qd3
{[%clk 00:00:18]} {[%emt 00:00:15]} Qe5 {[%clk 00:12:42]} {[%emt 00:00:19]} 33.
Re1 {[%clk 00:00:00]} {[%emt 00:00:20]} Qg5+ {[%clk 00:12:42]} {[%emt
00:00:02]} 34. Kh2 {[%clk 00:00:00]} {[%emt 00:00:05]} Qxh5+ {[%clk 00:12:42]}
{[%emt 00:00:03]} 0-1

[Event "Manhemjunioren 2024"]
[Site "Goteborgs Schackcentrum, Vegatan 20, Gothenburg, Sweden"]
[Date "2024.04.06"]
[Round "2.5"]
[White "Back, Arvid"]
[Black "Sivarama, Saadhvik"]
[Result "1-0"]
[TimeControl "18 minutes + 10 seconds per move from move one."]
[WhiteFideId "1772821"]
[BlackFideId "1773720"]
[WhiteElo "1512"]
[BlackElo "1566"]

1. e4 {[%clk 00:18:18]} {[%emt 00:00:02]} c5 {[%clk 00:18:18]} {[%emt
00:00:02]} 2. Nf3 {[%clk 00:18:25]} {[%emt 00:00:03]} d6 {[%clk 00:18:24]}
{[%emt 00:00:04]} 3. Bb5+ {[%clk 00:18:32]} {[%emt 00:00:04]} Bd7 {[%clk
00:18:24]} {[%emt 00:00:10]} 4. Bxd7+ {[%clk 00:18:34]} {[%emt 00:00:08]} Nxd7
{[%clk 00:18:31]} {[%emt 00:00:02]} 5. d4 {[%clk 00:18:36]} {[%emt 00:00:08]}
cxd4 {[%clk 00:18:34]} {[%emt 00:00:07]} 6. Qxd4 {[%clk 00:18:39]} {[%emt
00:00:07]} Ngf6 {[%clk 00:18:33]} {[%emt 00:00:12]} 7. h3 {[%clk 00:18:36]}
{[%emt 00:00:13]} g6 {[%clk 00:18:35]} {[%emt 00:00:08]} 8. Nc3 {[%clk
00:18:38]} {[%emt 00:00:08]} Bg7 {[%clk 00:18:42]} {[%emt 00:00:02]} 9. Qa4
{[%clk 00:18:21]} {[%emt 00:00:28]} O-O {[%clk 00:18:41]} {[%emt 00:00:11]} 10.
Be3 {[%clk 00:18:25]} {[%emt 00:00:05]} a6 {[%clk 00:18:23]} {[%emt 00:00:28]}
11. Rd1 {[%clk 00:18:27]} {[%emt 00:00:08]} b5 {[%clk 00:18:08]} {[%emt
00:00:25]} 12. Qb4 {[%clk 00:18:25]} {[%emt 00:00:13]} Qc7 {[%clk 00:17:17]}
{[%emt 00:01:02]} 13. Rd2 {[%clk 00:14:14]} {[%emt 00:04:21]} Nb6 {[%clk
00:16:27]} {[%emt 00:01:00]} 14. Bxb6 {[%clk 00:14:13]} {[%emt 00:00:11]} Qxb6
{[%clk 00:16:32]} {[%emt 00:00:03]} 15. Nd5 {[%clk 00:14:15]} {[%emt 00:00:08]}
Nxd5 {[%clk 00:16:33]} {[%emt 00:00:09]} 16. exd5 {[%clk 00:14:23]} {[%emt
00:00:02]} a5 {[%clk 00:16:12]} {[%emt 00:00:32]} 17. Qe4 {[%clk 00:14:13]}
{[%emt 00:00:19]} Bxb2 {[%clk 00:16:07]} {[%emt 00:00:16]} 18. O-O {[%clk
00:14:06]} {[%emt 00:00:16]} Rfe8 {[%clk 00:15:43]} {[%emt 00:00:34]} 19. Rb1
{[%clk 00:14:06]} {[%emt 00:00:11]} Bg7 {[%clk 00:15:49]} {[%emt 00:00:03]} 20.
g4 {[%clk 00:12:15]} {[%emt 00:02:00]} Rab8 {[%clk 00:14:49]} {[%emt 00:01:10]}
21. a3 {[%clk 00:12:17]} {[%emt 00:00:09]} Qc5 {[%clk 00:14:33]} {[%emt
00:00:26]} 22. Qe3 {[%clk 00:12:07]} {[%emt 00:00:20]} Qxe3 {[%clk 00:13:55]}
{[%emt 00:00:47]} 23. fxe3 {[%clk 00:12:16]} {[%emt 00:00:01]} e6 {[%clk
00:13:16]} {[%emt 00:00:49]} 24. e4 {[%clk 00:12:09]} {[%emt 00:00:17]} exd5
{[%clk 00:12:51]} {[%emt 00:00:35]} 25. exd5 {[%clk 00:12:12]} {[%emt
00:00:07]} Re3 {[%clk 00:12:42]} {[%emt 00:00:20]} 26. Rd3 {[%clk 00:12:19]}
{[%emt 00:00:03]} Rxd3 {[%clk 00:12:35]} {[%emt 00:00:17]} 27. cxd3 {[%clk
00:12:28]} {[%emt 00:00:01]} b4 {[%clk 00:12:37]} {[%emt 00:00:07]} 28. Rb3
{[%clk 00:12:30]} {[%emt 00:00:08]} bxa3 {[%clk 00:12:22]} {[%emt 00:01:47]} 29.
Rxb8+ {[%emt 00:00:03]} Bf8 {[%clk 00:12:30]} 30. Rb3 {[%clk 00:12:25]} {[%emt
00:00:03]} 1-0

[Event "Manhemjunioren 2024"]
[Site "Goteborgs Schackcentrum, Vegatan 20, Gothenburg, Sweden"]
[Date "2024.04.06"]
[Round "2.7"]
[White "Hansson, Isabelle"]
[Black "Havner, Arvid"]
[Result "0-1"]
[TimeControl "18 minutes + 10 seconds per move from move one."]
[WhiteFideId "1773593"]
[BlackFideId "1769308"]
[WhiteElo "1414"]
[BlackElo "1782"]

1. d4 {[%clk 00:18:18]} Nf6 {[%clk 00:18:19]} 2. Nc3 {[%clk 00:18:26]} {[%emt
00:00:02]} d5 {[%clk 00:18:20]} {[%emt 00:00:09]} 3. Nf3 {[%clk 00:18:24]}
{[%emt 00:00:12]} Bf5 {[%clk 00:18:21]} {[%emt 00:00:09]} 4. Bf4 {[%clk
00:18:10]} {[%emt 00:00:24]} c6 {[%clk 00:18:30]} 5. g3 {[%clk 00:18:14]}
{[%emt 00:00:06]} Nbd7 {[%clk 00:18:37]} {[%emt 00:00:03]} 6. Bg2 {[%clk
00:17:53]} {[%emt 00:00:31]} Qb6 {[%clk 00:18:43]} {[%emt 00:00:04]} 7. b3
{[%clk 00:17:29]} {[%emt 00:00:35]} e6 {[%clk 00:18:49]} {[%emt 00:00:03]} 8.
O-O {[%clk 00:16:58]} {[%emt 00:00:41]} Be7 {[%clk 00:18:38]} {[%emt 00:00:21]}
9. Re1 {[%clk 00:15:42]} {[%emt 00:01:26]} O-O {[%emt 00:00:07]} 10. Nh4 {[%clk
00:14:29]} {[%emt 00:01:22]} Bb4 {[%clk 00:17:37]} {[%emt 00:01:16]} 11. Bd2
{[%clk 00:13:42]} {[%emt 00:00:56]} Qxd4 {[%clk 00:17:13]} {[%emt 00:00:33]} 12.
Nb1 {[%clk 00:11:41]} {[%emt 00:02:12]} Qxa1 {[%clk 00:16:56]} {[%emt
00:00:26]} 13. Bxb4 {[%clk 00:11:49]} {[%emt 00:00:02]} c5 {[%clk 00:17:04]}
{[%emt 00:00:02]} 14. Bc3 {[%clk 00:11:06]} {[%emt 00:00:54]} Qxa2 {[%clk
00:17:12]} {[%emt 00:00:02]} 15. e3 {[%clk 00:10:28]} {[%emt 00:00:49]} Qxc2
{[%clk 00:17:11]} {[%emt 00:00:11]} 16. Nxf5 {[%clk 00:10:06]} {[%emt
00:00:32]} Qxf5 {[%clk 00:17:13]} {[%emt 00:00:07]} 17. b4 {[%clk 00:09:08]}
{[%emt 00:01:08]} Rac8 {[%clk 00:16:59]} {[%emt 00:00:24]} 18. Qa4 {[%clk
00:07:42]} {[%emt 00:01:37]} cxb4 {[%clk 00:16:32]} {[%emt 00:00:37]} 19. Bxb4
{[%clk 00:06:35]} {[%emt 00:01:17]} Ne4 {[%clk 00:16:27]} {[%emt 00:00:15]} 20.
Bxe4 {[%clk 00:06:04]} {[%emt 00:00:40]} Qxe4 {[%clk 00:16:33]} {[%emt
00:00:04]} 21. Rf1 {[%clk 00:06:05]} {[%emt 00:00:09]} Ne5 {[%clk 00:16:26]}
{[%emt 00:00:16]} 22. Nd2 {[%clk 00:05:45]} {[%emt 00:00:32]} Nf3+ {[%clk
00:13:14]} {[%emt 00:03:23]} 23. Nxf3 {[%clk 00:05:48]} {[%emt 00:00:06]} Rc4
{[%clk 00:12:59]} {[%emt 00:00:25]} 24. Nd2 {[%clk 00:04:18]} {[%emt 00:01:40]}
Rxb4 {[%clk 00:13:00]} {[%emt 00:00:08]} 25. Nxe4 {[%clk 00:04:26]} {[%emt
00:00:03]} Rxa4 {[%clk 00:13:09]} {[%emt 00:00:01]} 26. Nc5 {[%clk 00:04:28]}
{[%emt 00:00:08]} Rb4 {[%clk 00:13:12]} {[%emt 00:00:07]} 27. Rc1 {[%clk
00:03:23]} {[%emt 00:01:15]} Rc8 {[%clk 00:13:21]} {[%emt 00:00:01]} 28. Nd3
{[%clk 00:02:36]} {[%emt 00:00:57]} Rxc1+ {[%clk 00:13:29]} {[%emt 00:00:02]}
29. Nxc1 {[%clk 00:02:43]} {[%emt 00:00:02]} Rb1 {[%clk 00:13:39]} 30. Kg2
{[%clk 00:02:50]} {[%emt 00:00:04]} Rxc1 {[%clk 00:13:48]} {[%emt 00:00:02]}
0-1